Workbook

Sheet 汇总表
A1: 2023年度哈尔滨“丁香人才周”（春季）企业引才岗位参考信息
A2: 序号 | B2: 企业名称 | C2: 企业性质 （民企/国企） | D2: 所在地 | E2: 招聘岗位 | F2: 招聘人数 | G2: 招聘专业 | H2: 学历要求 | I2: 年薪 （例：8-10W） | J2: 工作地点 | K2: 联系人及联系电话
A3: =MAX($A$2:A2)+1 -> 1 | B3: 五常市彩桥米业有限公司 | C3: 民企 | D3: 五常市 | E3: 会计 | F3: 3 | G3: 财会专业 | H3: 本科 | I3: 4w-5w | J3: 五常市 | K3: 关蕊16645268009
E4: 质检员 | F4: 6 | G4: 食品检验 | H4: 本科 | I4: 3w-4w
A5: =MAX($A$2:A4)+1 -> 2 | B5: 黑龙江葵花药业股份有限公司 | C5: 民企 | D5: 五常市 | E5: 化验员 | F5: 5 | G5: 中药学、制药工程、药学等相关专业 | H5: 本科 | I5: 6w | J5: 五常市 | K5: 吴泽发55801806
E6: 储备工艺员 | F6: 5 | G6: 中药学、制药工程、药学等相关专业 | H6: 本科 | I6: 6w
A7: =MAX($A$2:A6)+1 -> 3 | B7: 五常市乔府大院农业股份有限公司 | C7: 民企 | D7: 五常市 | E7: 会计 | F7: 1 | G7: 财务管理 | H7: 本科 | I7: 3.5W-5W | J7: 五常市 | K7: 张珊珊13796190974
E8: 车间管理员 | F8: 1 | G8: 不限 | H8: 本科 | I8: 5W-6W
E9: 行政专员 | F9: 1 | G9: 行政管理、工商管理 | H9: 本科 | I9: 3.5W-5W
E10: 育种研究员 | F10: 1 | G10: 农学相关专业 | H10: 本科 | I10: 5W-6W
A11: =MAX($A$2:A10)+1 -> 4 | B11: 哈尔滨佳怡饮料有限公司 | C11: 民企 | D11: 五常市 | E11: 质量体系管理程序员 | F11: 1 | G11: 相关专业 | H11: 本科 | I11: 5-8W | J11: 五常市 | K11: 代俊波15146444618
E12: 品控部技术人员 | F12: 10 | G12: 相关专业 | H12: 本科 | I12: 4-6W
A13: =MAX($A$2:A12)+1 -> 5 | B13: 哈尔滨哈特啤酒有限公司 | C13: 民企 | D13: 五常市 | E13: 车间维修 | F13: 10 | G13: 机械维修 | H13: 本科 | I13: 6-8W | J13: 五常市 | K13: 代俊波15146444618
E14: 品控部技术人员 | F14: 10 | G14: 相关专业 | H14: 本科 | I14: 4-6W
A15: =MAX($A$2:A14)+1 -> 6 | B15: 五常丰源塑业有限公司 | C15: 民企 | D15: 五常市 | E15: 人事专员 | F15: 1 | G15: 人力行政 | H15: 本科 | I15: 4.2w | J15: 五常市 | K15: 刘冬影19903661196
E16: 采购专员 | F16: 1 | G16: 采购、企业管理 | H16: 本科 | I16: 4.8w
E17: 彩印助手 | F17: 3 | G17: 机械、自动化 | H17: 本科 | I17: 4.3w
A18: =MAX($A$2:A17)+1 -> 7 | B18: 黑龙江省五常金禾米业有限责任公司 | C18: 民企 | D18: 五常市 | E18: 区域销售经理 | F18: 2 | G18: 市场营销 | H18: 本科 | I18: 7-8w | J18: 五常市 | K18: 孙艳红13945654599
E19: 市场督导 | F19: 2 | G19: 市场营销 | H19: 本科 | I19: 7-8w | J19: 五常市
E20: 电商运营推广专员 | F20: 3 | G20: 市场营销 | H20: 本科 | I20: 7-8w
E21: 售前客服 | F21: 2 | G21: 市场营销 | H21: 本科 | I21: 4-6w | J21: 五常市
E22: 电销专员 | F22: 2 | G22: 市场营销 | H22: 本科 | I22: 4-10w
E23: 人资行政专员 | F23: 1 | G23: 人力资源 | H23: 本科 | I23: 5-6w | J23: 五常市
E24: 财务会计 | F24: 1 | G24: 会计专业 | H24: 本科 | I24: 5-6w
E25: 种业研发人员 | F25: 5 | G25: 种子相关研发专业 | H25: 本科 | I25: 8-10w | J25: 五常市
E26: 种业销售 | F26: 5 | G26: 市场营销 | H26: 本科 | I26: 5-10w
E27: 自动化设备操作员 | F27: 5 | G27: 电气自动化 | H27: 本科 | I27: 4-6w | J27: 五常市
E28: 化验员 | F28: 5 | G28: 检测化验 | H28: 本科 | I28: 4-6w
A29: =MAX($A$2:A28)+1 -> 8 | B29: 哈尔滨美君制药有限公司 | C29: 民企 | D29: 五常市 | E29: 提取、固体制剂、口服液工艺员 | F29: 5 | G29: 医药、制药技术相关专业 | H29: 本科 | I29: 根据岗位年薪3万到 8万不等 | J29: 五常市 | K29: 姜玉玲15546092202 18724584306（微信）
E30: 提取、固体制剂、口服液QA | F30: 5 | H30: 本科
E31: 化验员 | F31: 5 | H31: 本科
E32: 生产部技术员 | F32: 5 | H32: 本科
E33: 质保部技术员 | F33: 5 | H33: 本科
A34: =MAX($A$2:A33)+1 -> 9 | B34: 哈尔滨华雨制药集团有限公司 | C34: 民企 | D34: 五常市 | E34: QA | F34: 1 | G34: 药学相关专业 | H34: 本科 | I34: 3.6w | J34: 五常市 | K34: 洪静15845149733
E35: 工艺员 | F35: 1 | G35: 药学相关专业 | H35: 本科 | I35: 3.6w
E36: 化验室主任 | F36: 1 | G36: 药学相关专业 | H36: 本科 | I36: 6w
E37: 核算员 | F37: 1 | G37: 会计相关专业 | H37: 本科 | I37: 3.6w
E38: 机修 | F38: 1 | G38: 机械工程相关专业 | H38: 本科 | I38: 4.8w
E39: 电工 | F39: 1 | G39: 电力工程相关专业 | H39: 本科 | I39: 4.8w
A40: =MAX($A$2:A39)+1 -> 10 | B40: 黑龙江大北青生物制药有限公司 | C40: 民企 | D40: 五常市 | E40: 工艺员 | F40: 2 | G40: 药学及相关专业 | H40: 本科 | I40: 4W-6W | J40: 五常市 | K40: 王女士15636008526
E41: QA | F41: 1 | G41: 药学及相关专业 | H41: 本科 | I41: 年薪4W-6W
E42: QC | F42: 2 | G42: 药学及相关专业 | H42: 本科 | I42: 年薪4W-6W
A43: =MAX($A$2:A42)+1 -> 11 | B43: 黑龙江多美建筑工程有限公司 | C43: 民企 | D43: 五常市 | E43: 钢结构销售 | F43: 10 | G43: 建筑 | H43: 本科 | I43: 年薪2-10W | J43: 五常市 | K43: 慈经理13804528585
E44: 钢结构设计 | F44: 2 | G44: 建筑 | H44: 本科 | I44: 年薪2-10W | J44: 五常市
E45: 钢结构详图 | F45: 2 | G45: 建筑 | H45: 本科 | I45: 年薪2-10W
E46: 钢结构资料员 | F46: 1 | G46: 建筑 | H46: 本科 | I46: 年薪2-10W | J46: 五常市
E47: 钢结构项目经理 | F47: 5 | G47: 建筑 | H47: 本科 | I47: 年薪2-10W
A48: =MAX($A$2:A47)+1 -> 12 | B48: 哈尔滨松鹤制药有限公司 | C48: 民企 | D48: 五常市 | E48: 工艺员 | F48: 3 | G48: 药学相关专业 | H48: 本科 | I48: 年薪4W➕ | J48: 五常市 | K48: 王烁18845130302
E49: 化验员，质检员 | F49: 2 | G49: 药学相关专业 | H49: 本科 | I49: 年薪4W➕
A50: =MAX($A$2:A49)+1 -> 13 | B50: 大牧人牧业（黑龙江）集团有限公司 | C50: 民企 | D50: 五常市 | E50: 产品研发类管培生 | F50: 8 | G50: 动物营养与饲料科学专业、畜牧兽医等相关专业 | H50: 硕士 | I50: 年薪8-10w | J50: 五常市 | K50: 潘璐15245072129
E51: 人资行政管培生 | F51: 4 | G51: 人力资源管理、行政管理等相关专业 | H51: 本科 | I51: 年薪5-7w
E52: 网络维护管培生 | F52: 1 | G52: 计算机等相关专业 | H52: 本科 | I52: 年薪5-7w | J52: 五常市
E53: 采购管培生 | F53: 10 | G53: 采购、物流管理、行政管理、文秘等相关专业 | H53: 本科 | I53: 年薪5-7w
E54: 销售营业管培生 | F54: 4 | G54: 行政管理、工商管理、文秘等相关专业 | H54: 本科 | I54: 年薪5-7w | J54: 五常市
E55: 生产类管培生 | F55: 4 | G55: 机械、电器等相关专业 | H55: 本科 | I55: 年薪5-7w
E56: 审计管培生 | F56: 3 | G56: 审计、财管等相关专业 | H56: 本科 | I56: 年薪5-7w | J56: 五常市
E57: 法务管培生 | F57: 1 | G57: 法律等相关专业 | H57: 本科 | I57: 年薪5-7w
E58: 品控管培生 | F58: 8 | G58: 动物医学、动物科学、食品工程、粮食工程、化学检测等相关专业 | H58: 本科 | I58: 年薪5-7w | J58: 五常市
E59: 销售管培生 | F59: 4 | G59: 专业不限 | H59: 本科 | I59: 年薪5-7w
A60: =MAX($A$2:A59)+1 -> 14 | B60: 哈尔滨宇泰药业有限公司 | C60: 民企 | D60: 五常市 | E60: 化验员 | F60: 3 | G60: 中药学 | H60: 本科 | I60: 年薪3-4W | J60: 五常市 | K60: 李宜彬13945189042
A61: =MAX($A$2:A60)+1 -> 15 | B61: 哈尔滨博深科技发展有限公司 | C61: 民企 | D61: 香坊区 | E61: 机械设计师 | F61: 10 | G61: 机械设计师专业 | H61: 本科 | I61: 6-12w | J61: 香坊区新香坊路50号 | K61: 刘女士13115318682
A62: =MAX($A$2:A61)+1 -> 16 | B62: 哈尔滨孙进高级技工学校 | D62: 香坊区成高子镇哈成路259号 | E62: 高级护理教师 | F62: 5 | G62: 高护 | H62: 本科 | I62: 8W | J62: 香坊区 | K62: 李依15104692399
E63: 高铁服务教师 | F63: 3 | G63: 高铁 | H63: 本科 | I63: 5W | J63: 香坊区
E64: 校办主任 | F64: 1 | G64: 校长办公室 | H64: 本科 | I64: 6W | J64: 香坊区
E65: 美容美发教师 | F65: 3 | G65: 美容美发 | H65: 本科 | I65: 5W | J65: 香坊区
E66: 董事长英语翻译 | F66: 1 | G66: 行政 | H66: 本科 | I66: 10W | J66: 香坊区
E67: 招生教师 | F67: 7 | G67: 招生处 | H67: 本科 | I67: 4W | J67: 香坊区
A68: =MAX($A$2:A67)+1 -> 17 | B68: 哈尔滨裕源福肉食品加工有限公司 | C68: 民企 | D68: 哈尔滨市香坊区向阳镇向阳工业园区亚康路232号 | E68: 销售区域经理 | F68: 10 | G68: 不限 | H68: 本科 | I68: 6-12w | J68: 香坊区 | K68: 尹女士0451-87963222
E69: 销售内勤 | F69: 1 | G69: 会计/计算机/统计学 | H69: 本科 | I69: 4-5w
E70: 品控内勤 | F70: 1 | G70: 食品工程/会计 | H70: 本科 | I70: 5-6w
A71: =MAX($A$2:A70)+1 -> 18 | B71: 哈尔滨香康医院 | C71: 民企 | D71: 哈尔滨市香坊区中山路51号 | E71: 影像 | F71: 1 | G71: 影像 | H71: 本科 | I71: 6-9.6W | J71: 香坊区 | K71: 邱淑兰18345165677
E72: 临床医生 | F72: 4 | G72: 临床 | H72: 本科 | I72: 6-9.6W
E73: 护士 | F73: 4 | G73: 护理 | H73: 本科 | I73: 6-9.6W
E74: 药剂师 | F74: 2 | G74: 药剂 | H74: 本科 | I74: 6-9.6W
E75: 检验师 | F75: 1 | G75: 检验 | H75: 本科 | I75: 6-9.6W
A76: =MAX($A$2:A75)+1 -> 19 | B76: 哈尔滨市东方红中学校 | C76: 民企 | D76: 香坊区 | E76: 教师 | F76: 26 | G76: 教师专业 | H76: 本科 | I76: 10W | J76: 香坊区 | K76: 孙国武15245049999
A77: =MAX($A$2:A76)+1 -> 20 | B77: 黑龙江上德妇产医院 | C77: 民企 | D77: 哈尔滨 | E77: 学术推广专员 | F77: 2 | G77: 市场营销/药学 | H77: 本科 | I77: 8-15W | J77: 黑龙江省内 | K77: 亚旭17545119017
E78: 生殖中心护士 | F78: 1 | G78: 护理学 | H78: 本科 | I78: 3-6W
E79: 生殖中心医助 | F79: 2 | G79: 临床医学 | H79: 本科 | I79: 3-6W
E80: 生殖中心实验室实验员 | F80: 2 | G80: 临床医学 | H80: 本科 | I80: 8-12W
E81: 妇科病房医生 | F81: 1 | G81: 临床医学 | H81: 本科 | I81: 6-12W
E82: 产科病房医生 | F82: 1 | G82: 临床医学 | H82: 本科 | I82: 6-12W
E83: 儿科住院医生 | F83: 1 | G83: 儿科医学 | H83: 本科 | I83: 6-12W
A84: =MAX($A$2:A83)+1 -> 21 | B84: 哈尔滨恒瑞新药特药连锁有限公司 | C84: 民企 | D84: 哈尔滨香坊区新乡里街12号负一层 | E84: 药店营业员 | F84: 40 | G84: 药学及相关 | H84: 本科 | I84: 3.6-6w | J84: 哈尔滨香坊区 | K84: 杨昌玉13664618966
E85: 药店收银员 | F85: 5 | G85: 药学及相关 | H85: 本科 | I85: 3.6-6w
E86: 运营专员 | F86: 1 | G86: 药学及相关 | H86: 本科 | I86: 3.6-6w
E87: 储备采购经理 | F87: 1 | G87: 药学及相关 | H87: 本科 | I87: 3.6-6w
E88: 储备店长 | F88: 3 | G88: 药学及相关 | H88: 本科 | I88: 3.6-6w
A89: =MAX($A$2:A88)+1 -> 22 | B89: 哈尔滨千合动物药品制造有限公司 | C89: 民企 | D89: 哈尔滨 | E89: 人资专员 | F89: 1 | G89: 不限专业 | H89: 本科 | I89: 5-8W | J89: 哈尔滨市香坊区向阳工业区 | K89: 范佳敏15704605537
E90: 采购专员 | F90: 2 | G90: 不限专业 | H90: 本科 | I90: 5-8W
E91: 库管员 | F91: 2 | G91: 不限专业 | H91: 本科 | I91: 5-8W
E92: 业务经理 | F92: 10 | G92: 不限专业 | H92: 本科 | I92: 20-100w
E93: 配剂员 | F93: 2 | G93: 不限专业 | H93: 本科 | I93: 5-8W | J93: 哈尔滨市香坊区向阳工业区
E94: 质检员 | F94: 2 | G94: 药学、化学等相关专业 | H94: 本科 | I94: 5-8W
E95: 化验员 | F95: 2 | G95: 药学、化学等相关专业 | H95: 本科 | I95: 5-8W
A96: =MAX($A$2:A95)+1 -> 23 | B96: 哈尔滨市荣智学校 | C96: 民办 | D96: 哈市香坊区 | E96: 教师 | F96: 1 | G96: 生物 | H96: 本科 | I96: 3-5万 | J96: 哈市香坊区 | K96: 刘志勇 13604800670
E97: 教师 | F97: 1 | G97: 政治 | H97: 本科 | I97: 3-5万
E98: 教师 | F98: 3 | G98: 语文 | H98: 本科 | I98: 3-5万
A99: =MAX($A$2:A98)+1 -> 24 | B99: 哈尔滨小酒喔经贸有限公司 | C99: 民企 | D99: 哈尔滨 | E99: 财务助理 | F99: 2 | G99: 财务相关 | H99: 本科 | I99: 3.6-4W | J99: 南岗区长江路101号小酒喔2楼 | K99: 姚刚15645639150
E100: 客服文员 | F100: 2 | G100: 不限 | H100: 本科 | I100: 3.6-4W
E101: 人力资源助理 | F101: 1 | G101: 不限 | H101: 本科 | I101: 3.6-4W
E102: 新媒体运营/主播 | F102: 4 | G102: 新媒体相关 | H102: 本科 | I102: 4-6W
E103: 管理培训生-门店管理方向 | F103: 5 | G103: 不限 | H103: 本科 | I103: 6-7W | J103: 哈市门店就近分配
A104: =MAX($A$2:A103)+1 -> 25 | B104: 哈尔滨风华汽车销售有限责任公司 | C104: 民企 | D104: 哈尔滨 | E104: 汽车销售 | F104: 3 | G104: 市场营销 | H104: 本科 | I104: 4-6W | J104: 哈尔滨 | K104: 徐丹 15104696287
A105: =MAX($A$2:A104)+1 -> 26 | B105: 哈尔滨京恩肾病专科医院 | C105: 民办非企业 | D105: 香坊区 | E105: 医疗 | F105: 5 | G105: 临床医学 | H105: 本科 | I105: 5-10W | J105: 香坊区 | K105: 车佳13836188346
E106: 护理 | F106: 5 | G106: 护理学 | H106: 本科 | I106: 2-5W
A107: =MAX($A$2:A106)+1 -> 27 | B107: 北京中唐方德科技有限公司哈尔滨分公司 | C107: 民营企业 | D107: 哈尔滨 | E107: 嵌入式开发工程师 | F107: 5 | G107: 计算机 | H107: 本科 | I107: 20-24w | J107: 上海 | K107: 朱彬彬18346010306
A108: =MAX($A$2:A107)+1 -> 28 | B108: 哈尔滨市鑫领航汽车服务有限公司 | C108: 民营企业 | D108: 道里区 | E108: 实习销售顾问 | F108: 10 | G108: 不限 | H108: 本科 | I108: 8-10W | J108: 道里区 | K108: 蒋大鹏15004510082
E109: 实习主播 | F109: 10 | G109: 不限 | H109: 本科 | I109: 8-10W
E110: 实习电网销专员 | F110: 10 | G110: 不限 | H110: 本科 | I110: 8-10W
A111: =MAX($A$2:A110)+1 -> 29 | B111: 哈尔滨嘉景科技有限公司 | C111: 民营企业 | D111: 香坊区 | E111: 项目实施专员 | F111: 5 | G111: 计算机工程与应用专业 | H111: 本科 | I111: 5-8W | J111: 香坊区 | K111: 张燕18545132022
E112: 商务专员 | F112: 2 | G112: 市场营销相关专业 | H112: 本科 | I112: 3-5W
E113: 市场销售专员 | F113: 5 | G113: 市场营销 | H113: 本科 | I113: 6-10W
A114: =MAX($A$2:A113)+1 -> 30 | B114: 哈尔滨领军教育咨询有限公司 | C114: 民营企业 | D114: 香坊区 | E114: 销售人员 | F114: 6 | G114: 教育、心理、市场营销、企业管理、师范等相关专业 | H114: 本科 | I114: 5-10w | J114: 香坊区 | K114: 李倩茹13936260753
E115: 自媒体运营人员 | F115: 2 | G115: 计算机等相关专业 | H115: 本科 | I115: 5-7w
E116: 升学规划师 | F116: 2 | G116: 师范类相关专业 | H116: 本科 | I116: 5-10w
A117: =MAX($A$2:A116)+1 -> 31 | B117: 香坊区乐音社会工作服务中心 | C117: 民办非企业 | D117: 香坊区 | E117: 教务 | F117: 1 | G117: 学前教育 | H117: 本科 | I117: 4W-5W | J117: 香坊区 | K117: 迟诚15945990045
E118: 社工 | F118: 1 | G118: 社会工作 | H118: 本科 | I118: 4W-5W
E119: 教务 | F119: 1 | G119: 学前教育 | H119: 本科 | I119: 4W-5W
E120: 社工 | F120: 1 | G120: 社会工作 | H120: 本科 | I120: 4W-5W
A121: =MAX($A$2:A120)+1 -> 32 | B121: 哈尔滨哈锅锅炉容器工程有限责任公司 | C121: 民企 | D121: 哈尔滨哈南工业新城核心区哈南第八大道1号 | E121: 安装工艺员 | F121: 5 | G121: 理工科专业 | H121: 本科 | I121: 7.2-9.6w | J121: 哈南工业新城核心区哈南第八大道1号 | K121: 费丹82199801
E122: 锅炉设计员 | F122: 5 | G122: 热能、机械等相关专业 | H122: 本科 | I122: 4.8-6w
E123: 压力容器设计员 | F123: 4 | G123: 过程控制、机械等相关专业 | H123: 本科 | I123: 4.8-6w
E124: 钢结构设计员 | F124: 3 | G124: 钢结构、力学等相关专业 | H124: 本科 | I124: 4.8-6w
E125: 检查员/质量工程师 | F125: 3 | G125: 应用物理、金属材料等相关专业 | H125: 本科 | I125: 4.6-5.7w
E126: 工艺员 | F126: 3 | G126: 热能、机械等相关专业 | H126: 本科 | I126: 4.8-6w
A127: =MAX($A$2:A126)+1 -> 33 | B127: 哈尔滨德强高级中学 | C127: 民企 | D127: 哈尔滨市香坊区公滨路58号 | E127: 教师 | F127: 4 | G127: 语文 | H127: 本科 | I127: 3.6-12w | J127: 哈尔滨市香坊区公滨路58号 | K127: 张书红13766819687
E128: 教师 | F128: 4 | G128: 政治 | H128: 本科 | I128: 3.6-12w | J128: 哈尔滨市香坊区公滨路59号
E129: 教师 | F129: 2 | G129: 地理 | H129: 本科 | I129: 3.6-12w | J129: 哈尔滨市香坊区公滨路60号
E130: 教师 | F130: 2 | G130: 历史 | H130: 本科 | I130: 3.6-12w | J130: 哈尔滨市香坊区公滨路61号
A131: =MAX($A$2:A130)+1 -> 34 | B131: 哈尔滨剑桥学院 | C131: 民企 | D131: 哈尔滨市香坊区哈平路239号 | E131: 心理学专业教师 | F131: 1 | G131: 心理学、教育心理学 | H131: 硕士研究生及以上学历学位 | I131: 4.8-7.2w | J131: 香坊区哈平路239号 | K131: 丁老师0451-87066591
E132: 小学教育专业教师 | F132: 1 | G132: 小学教育 | H132: 硕士研究生及以上学历学位 | I132: 4.8-7.2w | J132: 香坊区哈平路240号
E133: 电子信息工程专业教师 | F133: 2 | G133: 电子科学与技术、信息与通信、仪器科学与技术 | H133: 硕士研究生及以上学历学位 | I133: 4.8-7.2w | J133: 香坊区哈平路241号
E134: 电气工程及其自动化专业教师 | F134: 8 | G134: 电气工程及其自动化、控制理论与控制工程 | H134: 硕士研究生及以上学历学位 | I134: 4.8-7.2w | J134: 香坊区哈平路242号
E135: 机械设计制造及其自动化专业教师 | F135: 1 | G135: 机械设计制造及其自动化 | H135: 硕士研究生及以上学历学位 | I135: 4.8-7.2w | J135: 香坊区哈平路243号
E136: 汽车服务工程专业教师 | F136: 3 | G136: 汽车服务工程、车辆工程 | H136: 硕士研究生及以上学历学位 | I136: 4.8-7.2w | J136: 香坊区哈平路244号
E137: 会计学专业教师 | F137: 6 | G137: 会计学、审计学 | H137: 硕士研究生及以上学历学位 | I137: 4.8-7.2w | J137: 香坊区哈平路245号
E138: 财务管理专业教师 | F138: 2 | G138: 财务管理 | H138: 硕士研究生及以上学历学位 | I138: 4.8-7.2w | J138: 香坊区哈平路246号
E139: 产品设计专业教师 | F139: 1 | G139: 产品设计、工业设计 | H139: 硕士研究生及以上学历学位 | I139: 4.8-7.2w | J139: 香坊区哈平路247号
E140: 数字媒体专业教师 | F140: 2 | G140: 数字媒体技术（影视制作、广播电视学）、动画（三维） 计算机软件工程（交互开发） | H140: 硕士研究生及以上学历学位 | I140: 4.8-7.2w | J140: 香坊区哈平路248号
E141: 教育教学类专业教师 | F141: 5 | G141: 现代教育技术、课程与教学论、教育学 | H141: 硕士研究生及以上学历学位 | I141: 4.8-7.2w | J141: 香坊区哈平路249号
E142: 商务英语专业教师 | F142: 1 | G142: 商务英语 | H142: 硕士研究生及以上学历学位 | I142: 4.8-7.2w | J142: 香坊区哈平路250号
E143: 物理教师 | F143: 1 | G143: 物理学 | H143: 硕士研究生及以上学历学位 | I143: 4.8-7.2w | J143: 香坊区哈平路251号
E144: 数学教师 | F144: 2 | G144: 数学、高等数学 | H144: 硕士研究生及以上学历学位 | I144: 4.8-7.2w | J144: 香坊区哈平路252号
E145: 国家安全教育课教师 | F145: 1 | G145: 国家安全学、法学、理学 | H145: 硕士研究生及以上学历学位 | I145: 4.8-7.2w | J145: 香坊区哈平路253号
E146: 军事理论课教师 | F146: 1 | G146: 军事学、教育学、马哲、马原、思政 | H146: 硕士研究生及以上学历学位 | I146: 4.8-7.2w | J146: 香坊区哈平路254号
E147: 劳动课教师 | F147: 1 | G147: 教育学、马哲、马原、思政 | H147: 硕士研究生及以上学历学位 | I147: 4.8-7.2w | J147: 香坊区哈平路255号
E148: 辅导员 | F148: 1 | G148: 中共党员，专业不限 | H148: 硕士研究生及以上学历学位 | I148: 4.8-7.2w | J148: 香坊区哈平路256号
E149: 教务处干事 | F149: 1 | G149: 统招全日制硕士研究生，工科或理科专业 具有3年教务工作经验或实验室相关工作经验 | H149: 硕士研究生及以上学历学位 | I149: 4.8-7.2w | J149: 香坊区哈平路257号
E150: 科研处干事 | F150: 1 | G150: 计算机、机械、电气等相关专业，有科研申报相关工作经验优先 | H150: 硕士研究生及以上学历学位 | I150: 4.8-7.2w | J150: 香坊区哈平路258号
E151: 知识产权管理干事 | F151: 1 | G151: 工学或知识产权相关专业，具有1-3年科研申报经验者优先 | H151: 硕士研究生及以上学历学位 | I151: 4.8-7.2w | J151: 香坊区哈平路259号
E152: 全科医生 | F152: 1 | G152: 具有全科执业医师资格证及相关职称，本科及以上学历，临床医学相关专业，具有急诊急救经验，懂心肺复苏，负责学生突发情况处置 | H152: 本科 | I152: 4.8-7.2w | J152: 香坊区哈平路260号
A153: =MAX($A$2:A152)+1 -> 35 | B153: 国开职业教育科技（黑龙江）集团有限公司 | C153: 民企 | D153: 哈尔滨市南岗区哈尔滨大街南侧A栋1单元903室 | E153: 教师 | F153: 20 | G153: 数学、语文、英语、物理、音乐、形体、体育、学工 | H153: 本科以上学历、具备教师资格证 | I153: 3.6-6w | J153: 哈尔滨市南岗区哈尔滨大街南侧A栋1单元903室 | K153: 王海滨15104543995
E154: 话务员 | F154: 20 | G154: 不限 | H154: 本科 | I154: 3-5.4w | J154: 哈尔滨市南岗区哈尔滨大街南侧A栋1单元904室
E155: 业务拓展 | F155: 30 | G155: 不限 | H155: 本科 | I155: 6-9.6w | J155: 哈尔滨市南岗区哈尔滨大街南侧A栋1单元905室
E156: 区域合作代理 | F156: 8 | G156: 不限 | H156: 本科 | I156: 9.6-18w | J156: 哈尔滨市南岗区哈尔滨大街南侧A栋1单元906室
A157: =MAX($A$2:A156)+1 -> 36 | B157: 哈尔滨市恒缘金业有限公司 | C157: 民企 | D157: 哈尔滨市道里区尚志大街40号 | E157: 管培生（周大福、千叶等品牌运营管理方向） | F157: 20 | G157: 市场营销、工商管理、财务管理、旅游管理 | H157: 本科 | I157: 3.6w | J157: 哈尔滨市道里区尚志大街40号 | K157: 张洋15046182302
A158: =MAX($A$2:A157)+1 -> 37 | B158: 哈尔滨绿达生动物药业有限公司 | C158: 民企 | D158: 哈尔滨市香坊区江南中环路成高子段77号 | E158: 药品化验员 | F158: 2 | G158: 药学、化学、制药等相关专业 | H158: 本科 | I158: 3-4.2w | J158: 哈尔滨市香坊区江南中环路成高子段77号 | K158: 黄少杰18945660512
D159: 哈尔滨市香坊区江南中环路成高子段78号 | E159: 营销员 | F159: 5 | G159: 动物医学、动物科学、畜牧兽医等相关专业 | H159: 本科 | I159: 5.4-8.4w | J159: 哈尔滨市香坊区江南中环路成高子段78号 | K159: 黄少杰18945660512
D160: 哈尔滨市香坊区江南中环路成高子段79号 | E160: 技术顾问 | F160: 2 | G160: 动物医学、动物科学、畜牧兽医等相关专业 | H160: 本科 | I160: 5.4-7.2w | J160: 哈尔滨市香坊区江南中环路成高子段79号 | K160: 黄少杰18945660512
D161: 哈尔滨市香坊区江南中环路成高子段80号 | E161: 药品研发员 | F161: 2 | G161: 药学、化学、制药等相关专业 | H161: 本科 | I161: 4.8-6.6w | J161: 哈尔滨市香坊区江南中环路成高子段80号 | K161: 黄少杰18945660512
A162: =MAX($A$2:A161)+1 -> 38 | B162: 哈尔滨楚尧商贸有限公司 | C162: 民企 | D162: 哈尔滨市松北区创新二路733号哈尔滨国际金融大厦14层1405 | E162: 医疗器械销售 | F162: 4 | G162: 医药类、营销类专业优先 | H162: 本科 | I162: 3.6w | J162: 哈尔滨市松北区创新二路733号哈尔滨国际金融大厦14层1405 | K162: 蒲天奕18845049239
D163: 哈尔滨市松北区创新二路733号哈尔滨国际金融大厦14层1406 | E163: 医疗器械工程师 | F163: 3 | G163: 专业不限，医药类专业优先 | H163: 本科 | I163: 3.6w | J163: 哈尔滨市松北区创新二路733号哈尔滨国际金融大厦14层1406 | K163: 蒲天奕18845049239
A164: =MAX($A$2:A163)+1 -> 39 | B164: 哈尔滨裕昌食品有限公司 | C164: 民企 | D164: 哈尔滨市经开区哈平路集中区渤海东路3号 | E164: 品控员 | F164: 3 | G164: 食品相关专业优先 | H164: 本科以上 | I164: 4.2-4.8w | J164: 哈尔滨市经开区哈平路集中区渤海东路3号 | K164: 芦女士15545955018
D165: 哈尔滨市经开区哈平路集中区渤海东路4号 | E165: 食品化验员 | F165: 2 | G165: 食品检验/工程相关专业 | H165: 本科以上 | I165: 4.8-6w | J165: 哈尔滨市经开区哈平路集中区渤海东路4号 | K165: 芦女士15545955018
D166: 哈尔滨市经开区哈平路集中区渤海东路5号 | E166: 审计专员 | F166: 1 | G166: 财务相关专业 | H166: 本科以上 | I166: 4.8-6w | J166: 哈尔滨市经开区哈平路集中区渤海东路5号 | K166: 芦女士15545955018
A167: =MAX($A$2:A166)+1 -> 40 | B167: 黑龙江柒零机电设备有限公司 | C167: 民企 | D167: 哈尔滨市松北区江平街279号 | E167: 销售助理 | F167: 2 | G167: 市场营销等销售相关专业优先 | H167: 本科及以上 | I167: 2.4-8.4w | J167: 哈尔滨市松北区江平街279号 | K167: 徐兵15114586447
D168: 哈尔滨市松北区江平街280号 | E168: 项目工程师 | F168: 2 | G168: 土木工程专业优先 | H168: 本科及以上 | I168: 3.6-7.2w | J168: 哈尔滨市松北区江平街280号 | K168: 徐兵15114586447
A169: =MAX($A$2:A168)+1 -> 41 | B169: 哈尔滨时务科技发展有限公司 | C169: 民企 | D169: 香坊区中山路162号迪康财富大厦6楼 | E169: 软调工程师（基站、督导、调测工程师） | F169: 12 | G169: 理工类 | H169: 本科及以上学历 | I169: 5.4-9.6w | J169: 香坊区中山路162号迪康财富大厦6楼 | K169: 陈先生15045066441
D170: 香坊区中山路162号迪康财富大厦7楼 | E170: 通信设计工程师 | F170: 5 | G170: 理工类 | H170: 本科及以上学历 | I170: 6-9.6w | J170: 香坊区中山路162号迪康财富大厦7楼 | K170: 陈先生15045066441
D171: 香坊区中山路162号迪康财富大厦8楼 | E171: 无线网络优化工程师 | F171: 15 | G171: 理工类 | H171: 本科及以上学历 | I171: 6-9.6w | J171: 香坊区中山路162号迪康财富大厦8楼 | K171: 陈先生15045066441
D172: 香坊区中山路162号迪康财富大厦9楼 | E172: 传输交换工程师 | F172: 13 | G172: 理工类 | H172: 本科及以上学历 | I172: 6-9.6w | J172: 香坊区中山路162号迪康财富大厦9楼 | K172: 陈先生15045066441
A173: =MAX($A$2:A172)+1 -> 42 | B173: 哈尔滨美丽石岛贸易有限公司 | C173: 民企 | D173: 南岗区宣化街435号、玉山路2号、长江路178号（龙塔2楼）、振兴街2号、平房区兴建街55-4号、建国街325号 | E173: 储备干部 | F173: 5 | G173: 不限 | H173: 本科 | I173: 4.8-9.6w | J173: 南岗区宣化街435号、玉山路2号、长江路178号（龙塔2楼）、振兴街2号、平房区兴建街55-4号、建国街325号 | K173: 李欣宇18104605008
D174: 南岗区宣化街435号、玉山路2号、长江路178号（龙塔2楼）、振兴街2号、平房区兴建街55-4号、建国街326号 | E174: 储备店长 | F174: 2 | G174: 不限 | H174: 本科 | I174: 4.8-9.6w | J174: 南岗区宣化街435号、玉山路2号、长江路178号（龙塔2楼）、振兴街2号、平房区兴建街55-4号、建国街326号 | K174: 李欣宇18104605008
D175: 南岗区宣化街435号、玉山路2号、长江路178号（龙塔2楼）、振兴街2号、平房区兴建街55-4号、建国街327号 | E175: 文案编辑 | F175: 2 | G175: 不限 | H175: 本科 | I175: 3.6-7.2w | J175: 南岗区宣化街435号、玉山路2号、长江路178号（龙塔2楼）、振兴街2号、平房区兴建街55-4号、建国街327号 | K175: 李欣宇18104605008
D176: 南岗区宣化街435号、玉山路2号、长江路178号（龙塔2楼）、振兴街2号、平房区兴建街55-4号、建国街328号 | E176: 行政前台 | F176: 1 | G176: 不限 | H176: 本科 | I176: 3.6-7.2w | J176: 南岗区宣化街435号、玉山路2号、长江路178号（龙塔2楼）、振兴街2号、平房区兴建街55-4号、建国街328号 | K176: 李欣宇18104605008
D177: 南岗区宣化街435号、玉山路2号、长江路178号（龙塔2楼）、振兴街2号、平房区兴建街55-4号、建国街329号 | E177: 财务专员 | F177: 1 | G177: 不限 | H177: 本科 | I177: 3.6-7.2w | J177: 南岗区宣化街435号、玉山路2号、长江路178号（龙塔2楼）、振兴街2号、平房区兴建街55-4号、建国街329号 | K177: 李欣宇18104605008
A178: =MAX($A$2:A177)+1 -> 43 | B178: 哈尔滨老哈食品有限公司 | C178: 民企 | D178: 哈尔滨市香坊区朝阳镇平安村 | E178: 销售业务 | F178: 1 | G178: 市场营销专业 | H178: 本科 | I178: 3.6w+高提成 | J178: 哈尔滨市香坊区朝阳镇平安村 | K178: 孙女士19845258613
E179: 主播 | F179: 2 | G179: 不限 | H179: 本科 | I179: 4.8w+高提成 | J179: 哈尔滨市香坊区朝阳镇平安村 | K179: 孙女士19845258613
E180: 库管 | F180: 3 | G180: 物流管理专业 | H180: 本科 | I180: 4.8w+提成 | J180: 哈尔滨市香坊区朝阳镇平安村 | K180: 孙女士19845258613
E181: 管培生 | F181: 4 | G181: 不限 | H181: 本科 | I181: 4.8-7.2w | J181: 哈尔滨市香坊区朝阳镇平安村 | K181: 孙女士19845258613
E182: 采购专员 | F182: 5 | G182: 不限 | H182: 本科 | I182: 3.6-4.8w | J182: 哈尔滨市香坊区朝阳镇平安村 | K182: 孙女士19845258613
A183: =MAX($A$2:A182)+1 -> 44 | B183: 哈尔滨保利科技大厦有限公司 | C183: 国企 | D183: 哈市香坊区 | E183: 保安员 | F183: 2 | G183: 不限 | H183: 本科 | I183: 3.6W | J183: 哈市香坊区 | K183: 82335580
A184: =MAX($A$2:A183)+1 -> 45 | B184: 哈尔滨和心诺泰医药科技有限公司 | C184: 民营企业 | D184: 依兰县通河路1号 | E184: 制药企业质量总监（质量负责人） | F184: 1 | G184: 药学、中药学及相关专业 | H184: 本科 | I184: 16-20W | J184: 依兰县 | K184: 乔宏民13603606661
E185: 化验室主任 | F185: 1 | G185: 药学、中药学及相关专业 | H185: 本科 | I185: 6-10W | J185: 依兰县
E186: 车间主任 | F186: 2 | G186: 药学、中药学及相关专业 | H186: 本科 | I186: 4-6W | J186: 依兰县
E187: GMP办公室主任 | F187: 1 | G187: 药学、中药学及相关专业 | H187: 本科 | I187: 8-16w | J187: 依兰县
E188: 产品技术专员 | F188: 3 | G188: 药学、中药学及相关专业 | H188: 本科 | I188: 3-6w | J188: 依兰县
E189: 质检员（QA） | F189: 2 | G189: 药学、中药学及相关专业 | H189: 本科 | I189: 2-4w | J189: 依兰县
E190: 化验员（QC） | F190: 3 | G190: 药学、中药学及相关专业 | H190: 本科 | I190: 2-5w | J190: 依兰县
E191: 工艺员 | F191: 2 | G191: 药学、中药学及相关专业 | H191: 本科 | I191: 2-5w | J191: 依兰县
E192: 供应主管 | F192: 1 | G192: 不限 | H192: 本科 | I192: 3-6w | J192: 依兰县
E193: 设备管理员 | F193: 1 | G193: 不限 | H193: 本科 | I193: 6-8w | J193: 依兰县
E194: 采购员 | F194: 1 | G194: 不限 | H194: 本科 | I194: 3-6w | J194: 依兰县
A195: =MAX($A$2:A194)+1 -> 46 | B195: 依兰志能祥赢生物质能源有限公司 | C195: 民营企业 | D195: 依兰县朝阳工业园区广源路南侧 | E195: 电气运行 | F195: 2 | G195: 电气专业 | H195: 本科 | I195: 4-6W | J195: 依兰县 | K195: 朱志美15246948803
E196: 锅炉运行 | F196: 2 | G196: 热动、集控运行专业 | H196: 本科 | I196: 4-6W | J196: 依兰县
E197: 汽机运行 | F197: 2 | G197: 热动、集控运行专业 | H197: 本科 | I197: 4-6W | J197: 依兰县
E198: 热控运行 | F198: 2 | G198: 机电专业 | H198: 本科 | I198: 4-6W | J198: 依兰县
E199: 成本会计 | F199: 1 | G199: 财务专业 | H199: 本科 | I199: 5-7W | J199: 依兰县
A200: =MAX($A$2:A199)+1 -> 47 | B200: 哈尔滨桃园食品饮品有限公司 | C200: 民营企业 | D200: 哈尔滨市依兰县迎兰朝鲜族乡集胜村 | E200: 内勤 | F200: 1 | G200: 不限 | H200: 本科 | I200: 3-5W | J200: 依兰县 | K200: 黄岩 13845149570
... 2150 more rows
